bitfinex-derivatives/quotes_BNBF0:USTF0_20250413
["timestamp","ask_amount","ask_price","bid_price","bid_amount"]
[1744560837496,0.878,584.82,584.39,2.96]
[1744560845402,0.878,584.82,584.39,3.541]
[1744560846601,0.878,584.82,584.39,4.263]
[1744560855315,0.878,584.82,584.4,0.31432363]
[1744560855617,0.261,584.82,584.4,0.31432363]
[1744560855817,0.29769797,585.33,584.4,0.31432363]
[1744560856112,0.29769797,585.33,584.39,3.625]
[1744560856317,0.29622059,585.32,584.4,0.31432472]
[1744560856618,0.29622059,585.32,584.39,3.625]
[1744560856817,0.29759614,585.33,584.39,3.625]
[1744560857016,0.29622059,585.32,584.39,3.625]
[1744560857616,0.29622059,585.32,584.39,2.938]
[1744560857817,0.29622755,585.31,584.39,2.938]
[1744560858012,0.29622755,585.32,584.39,2.938]
[1744560858212,0.29622755,585.31,584.39,2.938]
[1744560858412,0.29622755,585.32,584.39,2.938]
[1744560858616,0.29622755,585.3,584.39,2.938]
[1744560858817,0.29622755,585.29,584.39,2.938]
[1744560859018,0.29622755,585.31,584.4,0.31431421]
[1744560859218,0.869,585.32,584.39,2.938]
[1744560859414,0.29619132,585.31,584.39,2.938]
[1744560860014,0.29619132,585.31,584.4,1.473]
[1744560860219,1.13,585.32,584.4,1.473]
[1744560865118,0.29619991,585.31,584.4,1.473]
[1744560865819,0.29619991,585.31,584.41,0.31429884]
[1744560873823,1.13,585.32,584.4,2.146]
[1744560874022,0.29619454,585.31,584.41,0.31429843]
[1744560874428,0.29619454,585.31,584.41,1.19029843]
[1744560874630,0.29619454,585.31,584.42,0.31429843]
[1744560875630,1.13,585.32,584.41,0.876]
[1744560875831,0.29619397,585.31,584.42,0.31429784]
[1744560876427,0.29619397,585.31,584.42,1.12129784]
[1744560876631,0.29619397,585.31,584.43,0.31429784]
[1744560877330,0.29619401,585.3,584.44,0.31429788]
[1744560877528,0.29619401,585.31,584.43,0.31429788]
[1744560880427,1.13,585.32,584.43,0.31429788]
[1744560880634,1.13,585.32,584.42,0.807]
[1744560881829,1.13,585.32,584.43,0.34221378]
[1744560883036,1.13,585.32,584.44,0.3142156]
[1744560883237,1.13,585.32,584.45,0.34220207]
[1744560883832,1.13,585.32,584.46,0.31420635]
[1744560884237,1.13,585.32,584.45,0.34220207]
[1744560884438,1.13,585.32,584.46,0.31422179]
[1744560885433,1.13,585.32,584.47,0.912]
[1744560885638,1.13,585.32,584.48,0.31422179]
[1744560886740,1.13,585.32,584.47,0.912]
[1744560886939,1.13,585.32,584.48,0.31421547]
[1744560890547,1.13,585.32,584.49,0.954]
[1744560890841,1.13,585.32,584.5,0.31421547]
[1744560891441,1.13,585.32,584.49,0.954]
[1744560891646,1.13,585.32,584.5,0.31420035]
[1744560891846,1.13,585.32,584.5,1.16120035]
[1744560892047,1.13,585.32,584.51,0.31420035]
[1744560895949,1.13,585.32,584.52,0.523]
[1744560896145,1.13,585.32,584.53,0.31420035]
[1744560897752,1.13,585.32,584.52,0.523]
[1744560897948,1.13,585.32,584.53,0.31420316]
[1744560901954,1.13,585.32,584.52,0.523]
[1744560902154,1.13,585.32,584.53,0.31423028]
[1744560902649,1.13,585.32,584.52,0.523]
[1744560906558,0.2961656,585.31,584.52,0.523]
[1744560907061,0.29759232,585.44,584.52,1.105]
[1744560907062,0.2961656,585.43,584.52,1.105]
[1744560907261,0.2961656,585.42,584.52,1.105]
[1744560907461,0.2961656,585.43,584.52,1.105]
[1744560907862,1.30550286,586.02,584.52,1.105]
[1744560908061,0.29748039,585.44,584.52,1.105]
[1744560908258,0.2961656,585.43,584.52,1.105]
[1744560908663,0.2961656,585.99,584.52,1.105]
[1744560908958,0.3413144,585.97,584.52,1.105]
[1744560909163,0.2961656,585.96,584.52,1.105]
[1744560909363,0.34133187,585.94,584.52,1.105]
[1744560909563,0.2961656,585.93,584.52,1.105]
[1744560909768,0.34134935,585.91,584.52,1.105]
[1744560909966,0.2961656,585.9,584.52,1.105]
[1744560910165,0.34136683,585.88,584.52,1.105]
[1744560910466,0.2961656,585.87,584.52,1.105]
[1744560910668,0.34137848,585.86,584.52,1.105]
[1744560910966,0.2961656,585.85,584.52,1.105]
[1744560911270,0.34139596,585.83,584.53,0.31423714]
[1744560911565,0.2961656,585.82,584.53,0.31423714]
[1744560911760,0.63757322,585.81,584.53,0.31423714]
[1744560911965,0.63757905,585.8,584.53,0.31423714]
[1744560912163,0.63758487,585.79,584.53,0.31423714]
[1744560912466,0.6375907,585.78,584.53,0.31423714]
[1744560912666,0.63759653,585.77,584.53,0.31423714]
[1744560912962,0.2961656,585.76,584.53,0.31423714]
[1744560913266,0.34143093,585.77,584.52,1.75]
[1744560913468,0.2960868,585.76,584.53,0.31418969]
[1744560914170,0.2960868,585.76,584.54,0.34214938]
[1744560914572,0.2960868,585.76,584.55,0.31418969]
[1744560914967,0.29747404,585.75,584.55,0.31418969]
[1744560915270,0.2960868,585.74,584.55,0.31418969]
[1744560915472,0.2960868,585.74,584.55,1.13818969]
[1744560915775,0.2960868,585.74,584.56,0.31418969]
[1744560916070,0.29747404,585.75,584.55,0.824]
[1744560916673,0.34143093,585.77,584.55,0.824]
[1744560916973,0.29744734,585.74,584.56,0.34213767]
[1744560917668,0.29603154,585.73,584.57,0.31413396]
[1744560917974,0.29744734,585.74,584.56,0.34213767]
[1744560918175,0.29602815,585.73,584.57,0.31413047]
[1744560918874,0.29602815,585.73,584.58,0.34212597]
[1744560919075,0.29602815,585.73,584.59,0.31413047]
[1744560919273,0.29602815,585.73,584.59,1.76913047]
[1744560919472,0.29602815,585.73,584.6,0.31413047]
[1744560919673,0.29603204,585.72,584.61,0.65624286]
[1744560919874,0.29603204,585.76,584.62,0.65623701]
[1744560920075,0.29603204,585.75,584.63,0.65623116]
[1744560920276,0.29603204,585.75,584.64,0.34209085]
[1744560920472,0.29603204,585.74,584.65,0.31413445]
[1744560920676,0.29603204,585.74,584.66,0.34207915]
[1744560920873,0.29603204,585.73,584.67,0.31413445]
[1744560921275,0.29602871,585.72,584.68,0.31413103]
[1744560921476,0.29602871,585.74,584.67,0.31413103]
[1744560921675,0.29602871,585.73,584.68,0.31413103]
[1744560921873,0.29602871,585.74,584.67,0.31413103]
[1744560922077,0.29602871,585.73,584.68,0.31413103]
[1744560922378,0.29602871,585.72,584.69,0.31413103]
[1744560922573,0.29602871,585.74,584.67,0.31413103]
[1744560922773,0.29602871,585.74,584.66,0.34207915]
[1744560922774,0.29602764,585.73,584.68,0.31412997]
[1744560922973,0.29602764,585.72,584.69,0.31412997]
[1744560923174,0.29602764,585.71,584.67,0.31412997]
[1744560923378,0.29602764,585.74,584.68,0.31412997]
[1744560923573,0.29602764,585.73,584.67,0.31412997]
[1744560923778,0.29742827,585.75,584.66,0.34207915]
[1744560923779,0.29602764,585.74,584.68,0.31412997]
[1744560924087,0.29602764,585.73,584.69,0.31412997]
[1744560924281,0.29742827,585.75,584.66,0.34207915]
[1744560924482,0.29603085,585.74,584.67,0.3141332]
[1744560925383,0.766,585.73,584.67,0.3141332]
[1744560925581,0.29603085,585.72,584.67,0.3141332]
[1744560925979,0.29603085,585.72,584.66,1.06207915]
[1744560925980,0.29606078,585.71,584.68,0.31416346]
[1744560926281,0.29606078,585.71,584.69,0.31416346]
[1744560926482,0.29606078,585.71,584.66,1.06207915]
[1744560926780,0.29606078,585.71,584.67,0.31416487]
[1744560928881,0.29606078,585.72,584.67,0.31416487]
[1744560929082,0.29745624,585.7,584.67,0.31416487]
[1744560929274,0.29606078,585.69,584.67,0.31416487]
[1744560929583,0.29606078,585.69,584.67,1.06616487]
[1744560930082,0.29606078,585.69,584.68,0.31416487]
[1744560931883,0.29606078,585.69,584.67,0.752]
[1744560932084,0.29745624,585.7,584.67,0.752]
[1744560932281,0.29608232,585.69,584.67,0.752]
[1744560934987,0.29608232,585.68,584.67,0.752]
[1744560935287,0.766,585.73,584.67,0.752]
[1744560935487,0.29603048,585.72,584.67,0.752]
[1744560936186,0.26,585.71,584.67,0.752]
[1744560936386,0.29603048,585.7,584.67,0.752]
[1744560936687,0.26,585.71,584.67,0.752]
[1744560936883,0.29604634,585.7,584.67,0.752]
[1744560937883,0.29745751,585.69,584.67,0.752]
[1744560938088,0.29604634,585.68,584.67,0.752]
[1744560938291,0.29745751,585.69,584.67,1.515]
[1744560938490,0.29605124,585.68,584.67,1.515]
[1744560940896,0.29605124,585.7,584.67,1.515]
[1744560941094,0.29745497,585.67,584.68,0.31415506]
[1744560941295,0.29605124,585.66,584.68,0.31415506]
[1744560941495,0.29605124,585.66,584.67,2.492]
[1744560941692,0.29605124,585.66,584.68,0.31415534]
[1744560943798,0.29605124,585.65,584.68,0.31415534]
[1744560943999,0.29745497,585.67,584.68,0.31415534]
[1744560944196,0.29605124,585.66,584.68,0.31415534]
[1744560944597,0.29605161,585.65,584.69,0.3141542]
[1744560944798,0.29605161,585.66,584.68,0.3141542]
[1744560944997,0.29605161,585.65,584.69,0.3141542]
[1744560945197,0.29605161,585.66,584.68,0.3141542]
[1744560945495,0.29605161,585.65,584.69,0.3141542]
[1744560945692,0.29605161,585.64,584.7,0.3141542]
[1744560945898,0.29605161,585.63,584.68,0.3141542]
[1744560946096,0.29605161,585.63,584.67,2.492]
[1744560946097,0.29745497,585.67,584.67,2.492]
[1744560946293,0.29605173,585.66,584.68,0.31415432]
[1744560947596,0.29745497,585.67,584.67,2.492]
[1744560947801,0.29605149,585.66,584.68,0.31415407]
[1744560949800,0.29605149,585.7,584.68,0.31415407]
[1744560950001,0.29745497,585.67,584.68,0.31415407]
[1744560950201,0.29605149,585.66,584.68,0.31415407]
[1744560950802,0.29745497,585.67,584.67,3.25]
[1744560951003,0.2960377,585.66,584.68,0.31414015]
[1744560952404,0.29745497,585.67,584.67,3.25]
[1744560952597,0.2960374,585.66,584.68,0.31413985]
[1744560953004,0.26,585.71,584.68,0.31413985]
[1744560953005,0.29744734,585.67,584.68,0.31413985]
[1744560953200,0.2960374,585.65,584.68,0.31413985]
[1744560953406,0.2960374,585.64,584.68,0.31413985]
[1744560953606,0.2960374,585.66,584.68,0.31413985]
[1744560955007,0.715,585.65,584.68,0.31413985]
[1744560955308,0.2960374,585.64,584.68,0.31413985]
[1744560955907,0.2960374,585.64,584.67,3.25]
[1744560956106,0.29747531,585.63,584.67,3.25]
[1744560956303,0.2960374,585.62,584.67,3.25]
[1744560957008,0.29747531,585.63,584.67,3.25]
[1744560957209,0.29608628,585.62,584.67,3.25]
[1744560957811,0.715,585.65,584.67,3.25]
[1744560958105,0.29604347,585.64,584.67,3.25]
[1744560958511,0.715,585.65,584.67,3.25]
[1744560959211,0.715,585.65,584.67,4.078]
[1744560960812,0.26,585.64,584.67,4.078]
[1744560962209,0.29602413,585.63,584.67,4.078]
[1744560962916,0.26,585.64,584.67,4.078]
[1744560963114,0.296024,585.63,584.67,4.078]
[1744560963419,0.296024,585.63,584.68,0.31412565]
[1744560963718,0.296024,585.63,584.68,0.6561931]
[1744560963919,0.296024,585.63,584.69,0.65618725]
[1744560964317,0.296024,585.63,584.7,0.31412565]
[1744560965013,0.296024,585.63,584.71,0.3420499]
[1744560965215,0.296024,585.63,584.72,0.31412565]
[1744560966520,0.296024,585.63,584.71,0.3420499]
[1744560967121,0.296024,585.63,584.72,0.563]
[1744560967622,0.296024,585.63,584.73,0.31411203]
[1744560968417,0.296024,585.63,584.74,0.735]
[1744560968619,0.296024,585.63,584.75,0.31411203]
[1744560970722,0.296024,585.63,584.76,0.772]
[1744560970921,0.29600737,585.62,584.77,0.31410953]
[1744560971123,0.29600737,585.61,584.77,0.31410953]
[1744560971323,0.29600737,585.63,584.77,0.31410953]
[1744560971518,0.29600737,585.62,584.77,0.31410953]
[1744560971720,0.29600737,585.61,584.77,0.31410953]
[1744560972021,0.29600737,585.6,584.77,0.31410953]
[1744560972216,0.29600737,585.59,584.77,0.31410953]
[1744560972417,0.26,585.64,584.76,0.772]
[1744560972617,0.29600751,585.63,584.77,0.31410967]
[1744560972917,0.29600751,585.63,584.77,0.982]
[1744560973724,0.26,585.64,584.77,0.982]
[1744560976222,0.26,585.64,584.78,0.31408314]
[1744560977227,0.26,585.64,584.77,0.982]
[1744560977427,0.29597915,585.63,584.78,0.31408272]
[1744560978028,0.801,585.62,584.78,0.31408272]
[1744560978221,0.29597915,585.61,584.78,0.31408272]
[1744560978629,0.801,585.62,584.78,0.31408272]
[1744560978829,0.801,585.62,584.77,0.982]
[1744560979029,0.801,585.62,584.78,0.31408058]
[1744560981632,0.79089141,585.62,584.78,0.31408058]
[1744560981824,0.26,585.64,584.78,0.31408058]
[1744560982028,0.26,585.64,584.79,0.31407831]
[1744560982223,0.26,585.64,584.78,1.13807831]
[1744560982427,0.26,585.64,584.79,0.31407845]
[1744560984833,0.26,585.64,584.79,1.04607845]
[1744560985232,0.26,585.64,584.8,0.31407845]
[1744560985730,0.26,585.64,584.79,0.732]
[1744560985937,0.26,585.64,584.8,0.31407255]
[1744560987233,0.26,585.64,584.8,0.88607255]
[1744560987435,0.26,585.64,584.81,0.31407255]
[1744560989838,0.26,585.64,584.8,1.36]
[1744560990840,0.34143093,585.77,584.8,1.36]
[1744560991039,0.2964463,585.76,584.8,1.36]
[1744560991539,0.2964463,585.76,584.81,0.31406448]
[1744560993039,0.34143093,585.77,584.8,1.36]
[1744560993240,0.29644716,585.76,584.81,0.31406574]
[1744560994542,0.29644716,585.76,584.8,1.36]
[1744560994735,0.29646218,585.75,584.8,1.36]
[1744560994939,0.26,585.75,584.8,1.36]
[1744560995140,0.29646218,585.74,584.8,1.36]
[1744560996143,0.26,585.75,584.8,1.36]
[1744560996339,0.29646589,585.73,584.81,0.31408463]
[1744560996635,0.29646589,585.72,584.81,0.31408463]
[1744560996840,0.29646589,585.71,584.81,0.31408463]
[1744560997040,0.29646589,585.7,584.81,0.31408463]
[1744560997241,0.29646589,585.74,584.81,0.31408463]
[1744560997541,0.29646589,585.73,584.81,0.31408463]
[1744560997742,0.29646589,585.74,584.81,0.31408463]
[1744560997936,0.26,585.75,584.81,0.31408463]
[1744560997937,0.29646589,585.73,584.81,0.83508463]
[1744560998341,0.29646589,585.72,584.82,0.31408463]
[1744560998643,0.29646589,585.71,584.82,0.31408463]
[1744560998942,0.29646589,585.74,584.82,0.31408463]
[1744560999249,0.26,585.75,584.81,0.521]
[1744560999444,0.29646126,585.74,584.82,0.31407995]
[1744561000845,0.26,585.75,584.81,0.521]
[1744561001146,0.29646038,585.74,584.82,0.31407905]
[1744561001747,0.29646038,585.74,584.83,0.77]
[1744561001940,0.29646038,585.74,584.84,0.31407905]
[1744561002446,0.26,585.75,584.83,0.77]
[1744561002643,0.29645438,585.73,584.85,0.31407299]
[1744561002847,0.29645438,585.72,584.86,0.31407299]
[1744561003045,0.29645438,585.74,584.84,0.31407299]
[1744561003240,0.29645438,585.74,584.83,0.77]
[1744561004249,0.29645721,585.73,584.83,0.77]
[1744561004443,0.29645721,585.74,584.84,0.55]
[1744561005646,0.26,585.75,584.84,0.55]
[1744561005848,0.2964572,585.74,584.84,0.55]
[1744561006348,0.2964572,585.76,584.84,0.55]
[1744561006544,0.2964572,585.75,584.84,0.55]
[1744561006745,0.2964572,585.76,584.84,0.55]
[1744561007047,0.2964572,585.75,584.84,0.55]
[1744561007246,0.29645871,585.74,584.84,0.55]
[1744561007442,0.29645871,585.76,584.84,0.55]
[1744561007645,0.29645871,585.75,584.84,0.55]
[1744561007844,0.29645871,585.76,584.84,0.55]
[1744561008042,0.29645871,585.75,584.84,0.55]
[1744561008246,0.29645871,585.76,584.85,0.856]
[1744561008443,0.29645871,585.75,584.85,0.856]
[1744561008644,0.29645871,585.74,584.85,0.856]
[1744561008844,0.29645871,585.73,584.85,0.856]
[1744561009047,0.34143093,585.77,584.85,0.856]
[1744561009249,0.26,585.72,584.85,0.856]
[1744561018954,0.29643418,585.71,584.85,0.856]
[1744561019759,0.29643418,585.71,584.86,0.683]
[1744561021063,0.26,585.72,584.86,0.683]
[1744561021263,0.29645079,585.71,584.86,0.683]
[1744561023363,0.29645079,585.88,584.86,0.683]
[1744561024063,0.589,585.89,584.86,0.683]
[1744561024258,0.29646328,585.88,584.86,0.683]
[1744561025162,0.29736473,585.87,584.86,0.683]
[1744561025362,0.29646328,585.86,584.86,0.683]
[1744561026663,0.26,585.85,584.86,0.683]
[1744561026858,0.29646328,585.84,584.86,0.683]
[1744561028162,0.59383055,585.84,584.86,0.683]
[1744561028462,0.29646328,585.83,584.86,0.683]
[1744561028863,0.29645351,585.82,584.87,0.616]
[1744561029064,0.29645351,585.83,584.87,0.616]
[1744561029268,0.29645351,585.82,584.87,0.616]
[1744561029565,0.29645351,585.81,584.87,0.616]
[1744561029770,0.29645351,585.83,584.88,0.797]
[1744561030269,0.29645351,585.83,584.89,0.745]
[1744561030470,0.29645428,585.82,584.89,1.236]
[1744561030666,0.29645428,585.81,584.89,1.236]
[1744561030871,0.29645428,585.8,584.89,1.236]
[1744561031072,0.29645428,585.84,584.89,1.236]
[1744561031375,0.789,585.79,584.89,1.236]
[1744561031571,0.29645428,585.78,584.89,1.236]
[1744561033473,0.789,585.79,584.89,1.236]
[1744561033674,0.789,585.79,584.9,0.684]
[1744561041585,0.29645906,585.78,584.9,0.684]
[1744561042986,0.789,585.79,584.9,0.684]
[1744561046488,0.26,585.85,584.9,0.684]
[1744561048189,0.26,585.85,584.9,1.241]
[1744561048885,0.26,585.85,584.9,2.006]
[1744561049090,0.771,585.84,584.9,2.006]
[1744561049690,0.29646008,585.83,584.9,2.006]
[1744561052889,0.771,585.84,584.9,2.006]
[1744561053091,0.29646149,585.83,584.9,2.006]
[1744561053495,0.29646149,585.83,584.9,2.542]
[1744561054496,0.771,585.84,584.9,2.542]
[1744561054696,0.29646128,585.83,584.9,2.542]
[1744561055800,0.29646128,585.83,584.9,3.276]
[1744561056099,0.771,585.84,584.9,3.276]
[1744561056300,0.29645866,585.83,584.9,3.276]
[1744561060098,0.55645866,585.83,584.9,3.276]
[1744561060302,0.29645866,585.82,584.9,3.276]
[1744561061304,0.26,585.83,584.9,3.276]
[1744561063507,0.29645476,585.82,584.9,3.276]
[1744561063903,0.29645476,585.82,584.9,4.054]
[1744561067206,0.29645767,585.81,584.9,4.054]
[1744561067408,0.26,585.83,584.9,4.054]
[1744561077019,0.29645369,585.82,584.9,4.054]
[1744561079416,0.26,585.83,584.9,4.054]
[1744561080919,0.959,585.83,584.9,4.054]
[1744561084022,0.959,585.83,584.91,0.34193294]
[1744561085726,0.29640149,585.82,584.91,0.34193294]
[1744561086729,0.29640149,585.82,584.91,0.95893294]
[1744561087230,0.29640149,585.82,584.91,1.49193294]
[1744561087924,0.29640149,585.82,584.91,2.26293294]
[1744561088132,0.699,585.83,584.91,2.81193294]
[1744561088329,0.699,585.83,584.91,3.43893294]
[1744561090029,0.959,585.83,584.91,3.43893294]
[1744561098833,0.29639987,585.82,584.91,3.43893294]
[1744561099933,0.26,585.83,584.91,3.43893294]
[1744561100339,0.29639672,585.82,584.92,0.31401478]
[1744561100535,0.29639672,585.82,584.93,0.34192125]
[1744561100838,0.26,585.83,584.93,0.34192125]
[1744561101038,0.29640079,585.82,584.93,0.34192125]
[1744561102739,0.776,585.82,584.93,0.34192125]
[1744561106837,0.776,585.82,584.93,1.17992125]
[1744561109538,1.036,585.82,584.93,1.17992125]
[1744561110043,1.036,585.82,584.93,1.83792125]
[1744561113345,0.29640032,585.81,584.93,2.53792125]
[1744561114246,0.29640032,585.81,584.94,0.31401842]
[1744561114541,0.29640032,585.81,584.95,0.34190956]
[1744561114747,0.29640032,585.81,584.96,0.31401842]
[1744561115246,1.036,585.82,584.95,0.34190956]
[1744561115449,0.29640017,585.81,584.96,0.31401828]
[1744561116447,0.29640017,585.81,584.96,0.65592199]
[1744561116647,1.036,585.82,584.96,0.34190371]
[1744561118546,1.036,585.82,584.97,0.637]
[1744561126449,1.036,585.82,584.98,0.605]
[1744561127558,1.036,585.82,584.99,0.687]
[1744561131860,0.29641039,585.81,584.99,0.687]
[1744561132059,1.036,585.82,584.99,0.687]
[1744561134365,0.29640757,585.81,584.99,0.687]
[1744561135766,0.26,585.82,584.99,0.687]
[1744561135967,0.29640768,585.81,584.99,0.687]
[1744561137268,0.26,585.82,584.99,0.687]
[1744561137566,0.798,585.8,584.99,0.687]
[1744561139063,0.798,585.8,585.0,0.557]
[1744561141368,0.798,585.8,585.01,0.784]
[1744561141874,0.261,585.79,585.01,0.784]
[1744561143174,0.261,585.79,585.02,0.97]
[1744561147970,0.261,585.79,585.03,0.31398037]
[1744561148176,0.261,585.79,585.04,0.34185696]
[1744561148371,0.261,585.79,585.05,0.31398037]
[1744561149977,0.261,585.79,585.04,0.34185696]
[1744561155078,0.261,585.79,585.04,1.11185696]
[1744561155677,0.754,585.78,585.04,1.11185696]
[1744561157974,0.754,585.78,585.04,1.96385696]
[1744561159080,0.754,585.78,585.04,2.66985696]
[1744561161983,0.754,585.78,585.04,3.33385696]
[1744561164082,0.261,585.77,585.04,3.33385696]
[1744561172292,0.261,585.77,585.04,4.01885696]
[1744561172591,0.261,585.77,585.04,4.64685696]
[1744561178098,0.754,585.78,585.04,4.64685696]
[1744561180498,0.261,585.77,585.04,4.64685696]
[1744561184703,0.616,585.76,585.04,4.64685696]
[1744561195707,0.261,585.75,585.04,4.64685696]
[1744561206518,0.548,585.74,585.04,4.64685696]
[1744561219026,0.548,585.74,585.05,0.31395204]
[1744561219921,0.548,585.74,585.04,0.96985696]
[1744561221728,0.548,585.74,585.04,1.53885696]
[1744561222127,0.548,585.74,585.04,2.28785696]
[1744561222730,0.548,585.74,585.04,2.95785696]
[1744561223328,0.548,585.74,585.04,4.68585696]
[1744561228834,0.261,585.73,585.04,4.68585696]
[1744561232138,0.261,585.73,585.05,0.313944]
[1744561232338,0.261,585.73,585.06,0.34184528]
[1744561232537,0.261,585.73,585.07,0.313944]
[1744561232935,0.261,585.73,585.08,0.31394154]
[1744561233134,0.261,585.73,585.09,0.31394154]
[1744561233433,0.261,585.73,585.1,0.31394154]
[1744561233740,0.261,585.73,585.11,0.31394154]
[1744561234034,0.261,585.73,585.06,0.34184528]
[1744561234337,0.261,585.73,585.07,0.31393576]
[1744561234535,0.261,585.73,585.08,0.3139357]
[1744561234738,0.261,585.73,585.07,0.3139357]
[1744561234937,0.261,585.73,585.08,0.3139357]
[1744561235338,0.261,585.73,585.06,0.34184528]
[1744561235534,0.261,585.73,585.09,0.789]
[1744561236341,0.7,585.72,585.1,0.68]
[1744561243044,0.7,585.72,585.1,1.02182191]
[1744561243949,0.7,585.72,585.11,0.34181606]
[1744561246750,0.261,585.71,585.11,0.34181606]
[1744561247947,0.261,585.71,585.12,0.31392084]
[1744561248250,0.261,585.71,585.13,0.34180438]
[1744561248646,0.261,585.71,585.14,0.31392084]
[1744561248950,0.261,585.71,585.15,0.3417927]
[1744561250154,0.261,585.71,585.15,0.9187927]
[1744561251859,0.261,585.71,585.15,1.7847927]
[1744561253154,0.773,585.7,585.15,1.7847927]
[1744561253961,0.773,585.7,585.15,2.5917927]
[1744561255061,0.773,585.7,585.15,3.1537927]
[1744561259160,0.773,585.7,585.15,3.9817927]
[1744561263968,0.773,585.7,585.15,4.6407927]
[1744561267873,1.034,585.7,585.15,4.6407927]
[1744561296590,1.034,585.7,585.16,0.31390889]
[1744561297889,1.034,585.7,585.15,1.8287927]
[1744561298086,1.034,585.7,585.16,0.31391078]
[1744561298791,1.034,585.7,585.15,1.8287927]
[1744561299388,1.034,585.7,585.15,2.3967927]
[1744561299592,1.034,585.7,585.15,3.1817927]
[1744561299888,1.034,585.7,585.16,0.31391045]
[1744561300191,1.034,585.7,585.16,1.09291045]
[1744561300391,1.034,585.7,585.16,0.779]
[1744561300893,1.034,585.7,585.16,1.568]
[1744561305195,1.034,585.7,585.16,2.118]
[1744561312803,1.034,585.7,585.16,2.764]
[1744561314410,1.034,585.7,585.16,3.561]
[1744561325415,1.034,585.7,585.16,4.256]
[1744561367145,1.034,585.7,585.17,0.34178102]
[1744561370350,1.034,585.7,585.17,1.23178102]
[1744561370654,1.034,585.7,585.17,1.82778102]
[1744561370856,1.034,585.7,585.17,2.61078102]
[1744561371054,1.034,585.7,585.17,5.28178102]
[1744561421603,1.034,585.7,585.18,0.31389552]
[1744561423608,1.034,585.7,585.17,0.34178102]
[1744561424502,1.034,585.7,585.17,1.20778102]
[1744561425107,1.034,585.7,585.17,2.82278102]
[1744561425406,1.034,585.7,585.17,3.58278102]
[1744561425904,1.034,585.7,585.17,4.29178102]
[1744561426109,1.034,585.7,585.17,5.15978102]
[1744561431611,1.034,585.7,585.18,0.31380182]
[1744561432611,1.034,585.7,585.17,5.15978102]
[1744561438526,1.034,585.7,585.18,0.31379485]
[1744561438724,1.034,585.7,585.19,0.34176933]
[1744561440533,1.034,585.7,585.2,0.313793]
[1744561440737,1.034,585.7,585.21,0.34175765]
[1744561441037,1.034,585.7,585.22,0.313793]
[1744561441238,1.034,585.7,585.23,0.34174598]
[1744561441438,1.034,585.7,585.24,0.313793]
[1744561441636,1.034,585.7,585.23,0.34174598]
[1744561442635,1.034,585.7,585.24,0.885]
[1744561442840,1.034,585.7,585.25,0.3417343]
[1744561453046,1.034,585.7,585.26,0.31380219]
[1744561453243,1.034,585.7,585.27,0.34172262]
[1744561453447,1.034,585.7,585.27,1.00472262]
[1744561455548,1.034,585.7,585.27,1.71572262]
[1744561456349,1.034,585.7,585.27,2.92872262]
[1744561458051,1.034,585.7,585.28,0.31380122]
[1744561458252,1.034,585.7,585.27,2.92872262]
[1744561458454,0.2971819,586.45,585.29,0.34171094]
[1744561458751,0.29618456,586.44,585.29,0.34171094]
[1744561459251,0.2971819,586.45,585.29,0.34171094]
[1744561459452,0.2961824,586.44,585.29,0.34171094]
[1744561460153,0.2961824,586.9,585.29,0.34171094]
[1744561460353,0.29702844,586.45,585.29,0.34171094]
[1744561460553,0.34079678,586.86,585.29,0.34171094]
[1744561460755,0.2961824,586.85,585.29,0.34171094]
[1744561460953,0.3408142,586.83,585.29,0.34171094]
[1744561461351,0.2961824,586.82,585.29,0.34171094]
[1744561461552,0.34083162,586.8,585.29,0.34171094]